fUSD/lending_fUSD_20250517
["ID","MTS","AMOUNT","RATE_DAILY","PERIOD"]
[361337342,1747487434820,-500.0,0.00030788,7]
[361337343,1747487434830,-2244.41451621,0.00030904,2]
[361337344,1747487434839,-7500.0,0.00031,2]
[361337345,1747487434850,-20000.0,0.00031,7]
[361337346,1747487434859,-1075.24882736,0.00031003,24]
[361337347,1747487434870,-450.9744914,0.0003104,4]
[361337348,1747487434879,-500.0,0.00031099,7]
[361337349,1747487434889,-600.0,0.00031117,7]
[361337350,1747487434899,-600.0,0.00031191,7]
[361337351,1747487434909,-500.0,0.00031228,7]
[361337352,1747487434920,-352.86,0.00031369,2]
[361337353,1747487434929,-150.0,0.00031376,2]
[361337354,1747487434939,-1400.0,0.00031395,7]
[361337355,1747487434948,-31672.9693846,0.00031415,3]
[361337356,1747487434958,-600.0,0.00031425,7]
[361337357,1747487434969,-500.0,0.00031442,7]
[361337358,1747487434979,-248.71531821,0.00031442,2]
[361337359,1747487434988,-864.45616425,0.00031708,2]
[361337360,1747487434998,-150.0,0.0003172,2]
[361337361,1747487435007,-150.0,0.00031726,2]
[361337362,1747487435017,-150.0,0.00031728,2]
[361337363,1747487435026,-150.0,0.00031768,2]
[361337364,1747487435035,-561.83,0.00031786,2]
[361337365,1747487435045,-150.0,0.00031795,2]
[361337366,1747487435054,-1075.24882736,0.00031797,25]
[361337367,1747487435063,-150.0,0.00031805,2]
[361337368,1747487435072,-150.0,0.00031837,2]
[361337369,1747487435082,-600.0,0.00031839,7]
[361337370,1747487435091,-2000.0,0.0003184,3]
[361337371,1747487435101,-600.0,0.00031845,7]
[361337372,1747487435111,-500.0,0.00031856,7]
[361337373,1747487435121,-150.0,0.0003186,2]
[361337374,1747487435131,-150.0,0.0003186,2]
[361337375,1747487435140,-150.0,0.00031861,2]
[361337376,1747487435149,-1000.0,0.00031896,2]
[361337377,1747487435158,-150.0,0.00031902,2]
[361337378,1747487435168,-2244.41451617,0.00031904,2]
[361337379,1747487435177,-567.60925407,0.00031904,2]
[361337380,1747487435189,-181.53729063,0.00031906,2]
[361337381,1747487435198,-150.0,0.00031908,2]
[361337382,1747487435208,-150.0,0.0003192,2]
[361337383,1747487435218,-500.0,0.00031923,7]
[361337384,1747487435228,-500.0,0.00031927,7]
[361337385,1747487435238,-150.0,0.00031928,2]
[361337386,1747487435247,-150.0,0.00031959,2]
[361337387,1747487435257,-150.0,0.0003196,2]
[361337388,1747487435267,-150.0,0.00031962,2]
[361337389,1747487435277,-500.0,0.00031984,7]
[361337390,1747487435287,-31672.9693846,0.0003199,3]
[361337391,1747487435296,-1256.59124377,0.00032,2]
[361337392,1747487435305,-153.52307133,0.00032,30]
[361337393,1747487435315,-150.0,0.00032,2]
[361337394,1747487435324,-501.0,0.00032,120]
[361337395,1747487435334,-2500.0,0.00032,120]
[361337396,1747487435344,-900.0,0.00032,33]
[361337397,1747487435354,-3596.5259428,0.00032,40]
[361337398,1747487435363,-10000.0,0.00032,120]
[361337399,1747487435373,-730.0,0.00032,5]
[361337400,1747487435383,-1000.0,0.00032,30]
[361337401,1747487435392,-30000.0,0.00032,7]
[361337402,1747487435402,-150.0,0.00032,7]
[361337403,1747487435412,-150.0,0.00032,7]
[361337404,1747487435421,-159.32711568,0.00032,7]
[361337405,1747487435432,-156.30298771,0.00032,7]
[361337406,1747487435442,-150.0,0.00032,7]
[361337407,1747487435452,-4000.0,0.00032,2]
[361337408,1747487435462,-600.0,0.00032033,7]
[361337409,1747487435476,-600.0,0.00032073,7]
[361337410,1747487435485,-169.02,0.00032107,2]
[361337411,1747487435495,-1400.0,0.00032195,7]
[361337412,1747487435505,-2328.15,0.00032211,2]
[361337413,1747487435515,-150.0,0.00032211,2]
[361337414,1747487435525,-500.0,0.00032252,7]
[361337415,1747487435535,-2000.0,0.00032329,120]
[361337416,1747487435546,-150.0,0.00032392,7]
[361337417,1747487435555,-500.0,0.00032407,2]
[361337418,1747487435566,-2110.0,0.00032459,2]
[361337419,1747487435576,-31672.9693846,0.0003249,3]
[361337420,1747487435585,-2899.37,0.000325,120]
[361337421,1747487435595,-2899.37,0.000325,120]
[361337422,1747487435605,-2899.37,0.000325,120]
[361337423,1747487435614,-2899.37,0.000325,120]
[361337424,1747487435624,-2899.37,0.000325,120]
[361337425,1747487435634,-1075.24882736,0.0003259,27]
[361337426,1747487435643,-1400.0,0.00032603,7]
[361337427,1747487435653,-175.0,0.00032622,14]
[361337428,1747487435663,-500.0,0.0003263,7]
[361337429,1747487435672,-150.0,0.00032784,7]
[361337430,1747487435682,-4662.99477589,0.000328,2]
[361337431,1747487435692,-257.91778498,0.00032811,2]
[361337432,1747487435701,-548.0,0.00032823,30]
[361337433,1747487435711,-80425.38466482,0.00032843,31]
[361337434,1747487435724,-31672.9693846,0.00032844,3]
[361337435,1747487435734,-31672.9693846,0.00032854,3]
[361337436,1747487435744,-49556.0812689,0.00032854,3]
[361337437,1747487435753,-24778.0406344,0.00032857,3]
[361337438,1747487435763,-31672.9693846,0.0003286,3]
[361337439,1747487435772,-5525.49,0.0003287,120]
[361337440,1747487435782,-151.08,0.00032876,2]
[361337441,1747487435791,-332.21,0.00032877,2]
[361337442,1747487435801,-208.0,0.00032877,120]
[361337443,1747487435810,-200.0,0.00032877,120]
[361337444,1747487435819,-2000.0,0.00032877,120]
[361337445,1747487435830,-378.0,0.00032877,12]
[361337446,1747487435839,-500.0,0.00032877,7]
[361337447,1747487435849,-381.90697433,0.000329,2]
[361337448,1747487435859,-2110.0,0.00032959,2]
[361337449,1747487435869,-823.65580061,0.00032965,7]
[361337450,1747487435879,-24778.0406344,0.0003297,3]
[361337451,1747487435888,-152.0,0.00032977,5]
[361337452,1747487435898,-31672.9693846,0.0003298,3]
[361337453,1747487435908,-30023.79556303,0.0003299,3]
[361337454,1747487436107,-1649.17382157,0.0003299,3]
[361337455,1747487436116,-11005.82617843,0.0003299,3]
[361337462,1747487438551,-151.0,0.00019448,2]
[361337463,1747487438560,-1054.93798175,0.00022672,2]
[361337464,1747487438570,-2244.41451617,0.00032903,2]
[361337465,1747487438580,-795.56018809,0.0003299,3]
[361337466,1747487438592,-12976.65426788,0.0003299,3]
[361337467,1747487438601,-870.01021191,0.00033,2]
[361337468,1747487438612,-1345.17945493,0.00033,2]
[361337469,1747487438740,-279.205,0.000323,2]
[361337470,1747487438750,-2351.53941692,0.00033,2]
[361337471,1747487438759,-3775.07997108,0.00033,2]
[361337472,1747487438770,-17407.67178013,0.00033,2]
[361337475,1747487440033,-838.0,0.0002426,2]
[361337476,1747487440043,-3982.89628064,0.00033,2]
[361337477,1747487440053,-433.78517314,0.00033,120]
[361337478,1747487440351,-1250.40308415,0.00033,120]
[361337479,1747487440387,-150.0,0.00033,2]
[361337480,1747487440397,-2535.13525331,0.00033,120]
[361337481,1747487440405,-2.2184126,0.00033,120]
[361337490,1747487440911,-198.833835,0.00033,120]
[361337491,1747487440920,-900.0,0.00033,34]
[361337492,1747487440930,-160.0,0.00033,2]
[361337493,1747487440939,-160.0,0.00033,2]
[361337494,1747487440949,-160.0,0.00033,2]
[361337495,1747487440958,-160.0,0.00033,2]
[361337496,1747487440967,-160.0,0.00033,2]
[361337497,1747487440977,-160.0,0.00033,2]
[361337498,1747487440986,-160.0,0.00033,2]
[361337499,1747487440995,-160.0,0.00033,2]
[361337500,1747487441004,-160.0,0.00033,2]
[361337501,1747487441013,-160.0,0.00033,2]
[361337502,1747487441022,-160.0,0.00033,2]
[361337503,1747487441032,-165.299999,0.00033,2]
[361337504,1747487441041,-375.80376,0.00033,14]
[361337505,1747487441050,-987.78647865,0.00033023,7]
[361337506,1747487441062,-412.21352135,0.00033023,7]
[361337507,1747487441071,-179.74,0.00033033,2]
[361337508,1747487441080,-6.58092128,0.00033033,2]
[361337509,1747487441091,-443.28907872,0.00033033,2]
[361337510,1747487441100,-474.36166947,0.00033092,7]
[361337511,1747487441204,-25.63833053,0.00033092,7]
[361337512,1747487441214,-216.96656664,0.000331,2]
[361337513,1747487441225,-789.45029745,0.00033125,3]
[361337514,1747487441236,-6314.27166893,0.00033125,3]
[361337515,1747487441248,-11360.49761843,0.00033125,3]
[361337516,1747487441259,-947.72946,0.00033125,3]
[361337532,1747487443773,-850.0,0.00033125,3]
[361337534,1747487443925,-4516.09158959,0.00033125,3]
[361337535,1747487443935,-1157.59,0.00033145,2]
[361337536,1747487443945,-150.25,0.00033145,2]
[361337537,1747487443954,-150.25,0.00033145,2]
[361337538,1747487443964,-200.0,0.00033151,2]
[361337539,1747487443973,-166.11,0.00033165,2]
[361337540,1747487443983,-150.0,0.00033177,7]
[361337541,1747487443992,-1400.0,0.00033179,7]
[361337542,1747487444002,-1400.0,0.00033189,7]
[361337543,1747487444011,-500.0,0.00033212,7]
[361337544,1747487444021,-567.60925407,0.00033236,2]
[361337545,1747487444030,-500.0,0.00033249,7]
[361337546,1747487444040,-1240.101,0.0003326,2]
[361337547,1747487444049,-154.0,0.0003326,2]
[361337548,1747487444058,-500.0,0.00033293,7]
[361337549,1747487444067,-500.0,0.00033317,7]
[361337550,1747487444077,-150.0,0.00033324,7]
[361337551,1747487444086,-500.0,0.00033343,2]
[361337552,1747487444095,-2000.0,0.00033425,120]
[361337553,1747487444105,-2110.0,0.00033459,2]
[361337554,1747487444114,-169.02,0.00033477,2]
[361337555,1747487444124,-1171.14195922,0.000335,2]
[361337556,1747487444133,-160.0,0.000335,4]
[361337557,1747487444142,-153.97,0.000335,31]
[361337558,1747487444152,-153.97,0.000335,31]
[361337559,1747487444162,-153.97,0.000335,31]
[361337560,1747487444171,-153.97,0.000335,31]
[361337561,1747487444180,-153.97,0.000335,31]
[361337562,1747487444189,-153.97,0.000335,31]
[361337563,1747487444199,-153.97,0.000335,31]
[361337564,1747487444209,-153.97,0.000335,31]
[361337565,1747487444218,-153.97,0.000335,31]
[361337566,1747487444227,-500.0,0.0003351,7]
[361337567,1747487444236,-150.0,0.00033569,7]
[361337568,1747487444246,-600.0,0.00033615,7]
[361337569,1747487444255,-600.0,0.00033662,7]
[361337570,1747487444264,-150.0,0.00033687,2]
[361337571,1747487444274,-600.0,0.00033754,7]
[361337572,1747487444283,-264.91,0.00033769,120]
[361337573,1747487444293,-600.0,0.00033823,7]
[361337574,1747487444302,-31672.9693846,0.00033849,3]
[361337575,1747487444312,-1400.0,0.00033862,7]
[361337576,1747487444321,-500.0,0.00033862,7]
[361337577,1747487444330,-334.87626,0.00033888,7]
[361337578,1747487444339,-24778.0406344,0.0003389,3]
[361337579,1747487444348,-600.0,0.00033896,7]
[361337580,1747487444357,-5000.0,0.000339,2]
[361337581,1747487444366,-1499.999999,0.000339,10]
[361337582,1747487444375,-2244.41451617,0.00033903,2]
[361337583,1747487444384,-263.91,0.0003391,2]
[361337584,1747487444394,-2103.14,0.00033959,2]
[361337585,1747487444403,-150.0,0.00033961,7]
[361337586,1747487444412,-244.25,0.00033967,2]
[361337587,1747487444421,-8311.49335143,0.0003397,3]
[361337588,1747487444433,-12917.9828306,0.0003397,3]
[361337589,1747487444538,-2426.76688507,0.0003397,3]
[361337590,1747487444551,-322.7299985,0.0003397,3]
[361337592,1747487446154,-261.81012156,0.0003397,3]
[361337593,1747487446294,-7432.18619744,0.0003397,3]
[361337594,1747487446304,-24778.0406344,0.0003397,3]
[361337595,1747487446314,-205.5659414,0.0003397,2]
[361337596,1747487446323,-2000.0,0.00033973,120]
[361337597,1747487446332,-214.0,0.0003398,2]
[361337598,1747487446341,-31672.9693846,0.0003398,3]
[361337599,1747487446351,-24778.0406344,0.0003398,3]
[361337600,1747487446360,-31672.9693846,0.0003399,3]
[361337601,1747487446369,-723.55873562,0.0003399,3]
[361337611,1747487446471,-9876.84398034,0.0003399,3]
[361337613,1747487446483,-584.64999884,0.0003399,3]
[361338213,1747487955484,400.0,0.00027397,120]
[361338298,1747488370511,-300.0,0.00013999,2]
[361338299,1747488370536,-9700.0,0.00014,2]
[361338300,1747488376331,-10000.0,0.00014,2]
[361338301,1747488377210,-10000.0,0.00014,2]
[361338302,1747488377730,-10000.0,0.00014,2]
[361338303,1747488377993,-10000.0,0.00014,2]
[361338304,1747488378098,-10000.0,0.00014,2]
[361338305,1747488378340,-10000.0,0.00014,2]
[361338306,1747488378955,-10000.0,0.00014,2]
[361338307,1747488379624,-10000.0,0.00014,2]
[361338308,1747488379811,-10000.0,0.00014,2]
[361338309,1747488380169,-10000.0,0.00014,2]
[361338310,1747488380418,-10000.0,0.00014,2]
[361338311,1747488380731,-10000.0,0.00014,2]
[361338313,1747488441766,-1668.174914,0.00013928,2]
[361338314,1747488441787,-150.0,0.00013998,2]
[361338315,1747488441807,-1000.0,0.00013999,2]
[361338316,1747488441828,-192.12609961,0.00013999,2]
[361338317,1747488441847,-186.71529297,0.00013999,2]
[361338318,1747488441870,-180.70932469,0.00013999,2]
[361338319,1747488441895,-500.0,0.00013999,2]
[361338320,1747488441918,-500.0,0.00013999,2]
[361338321,1747488441944,-235.96439834,0.00013999,2]
[361338322,1747488441969,-500.0,0.00013999,2]
[361338323,1747488441992,-500.0,0.00013999,2]
[361338324,1747488442018,-500.0,0.00013999,2]
[361338325,1747488442043,-611.04502545,0.00013999,2]
[361338326,1747488442068,-500.0,0.00013999,2]
[361338327,1747488442095,-500.0,0.00013999,2]
[361338328,1747488442120,-500.0,0.00013999,2]
[361338329,1747488442146,-500.0,0.00013999,2]
[361338330,1747488442174,-1275.26494494,0.00014,2]
[361338331,1747488443721,-10000.0,0.00014,2]
[361338332,1747488443814,-10000.0,0.00014,2]
[361338333,1747488444166,-10000.0,0.00014,2]
[361338334,1747488444614,-10000.0,0.00014,2]
[361338335,1747488445636,-10000.0,0.00014,2]
[361338336,1747488445903,-10000.0,0.00014,2]
[361338337,1747488446159,-10000.0,0.00014,2]
[361338338,1747488446681,-10000.0,0.00014,2]
[361338339,1747488447043,-10000.0,0.00014,2]
[361338340,1747488447401,-10000.0,0.00014,2]
[361338341,1747488447620,-10000.0,0.00014,2]
[361338342,1747488448225,-10000.0,0.00014,2]
[361338343,1747488448705,-10000.0,0.00014,2]
[361338344,1747488449376,-10000.0,0.00014,2]
[361338345,1747488449698,-10000.0,0.00014,2]
[361338346,1747488450660,-3791.49201838,0.00014,2]
[361338347,1747488450683,-6208.50798162,0.00014,2]
[361338348,1747488450942,-10000.0,0.00014,2]
[361338349,1747488451189,-10000.0,0.00014,2]
[361338350,1747488451777,-10000.0,0.00014,2]
[361338351,1747488451909,-10000.0,0.00014,2]
[361338352,1747488452464,-10000.0,0.00014,2]
[361338353,1747488452858,-10000.0,0.00014,2]
[361338354,1747488453442,-355.22528199,0.00012999,2]
[361338355,1747488453466,-9644.77471801,0.00014,2]
[361338356,1747488453978,-10000.0,0.00014,2]
[361338357,1747488454586,-10000.0,0.00014,2]
[361338358,1747488455184,-10000.0,0.00014,2]
[361338359,1747488455919,-10000.0,0.00014,2]
[361338360,1747488456395,-10000.0,0.00014,2]
[361338361,1747488456687,-10000.0,0.00014,2]
[361338362,1747488508090,-1824.9197223,0.000139,2]
[361338363,1747488508113,-300.0,0.00013999,2]
[361338364,1747488508136,-7875.0802777,0.00014,2]
[361338365,1747488509128,-10000.0,0.00014,2]
[361338366,1747488509508,-10000.0,0.00014,2]
[361338367,1747488509863,-10000.0,0.00014,2]
[361338368,1747488510433,-10000.0,0.00014,2]
[361338369,1747488511003,-646.18795684,0.000139,2]
[361338370,1747488511026,-9353.81204316,0.00014,2]
[361338371,1747488511239,-10000.0,0.00014,2]
[361338372,1747488512338,-10000.0,0.00014,2]
[361338373,1747488512388,2650.44495844,0.0001,2]
[361338374,1747488512692,-185.85241611,0.00013999,2]
[361338375,1747488512716,-9814.14758389,0.00014,2]
[361338376,1747488513048,-10000.0,0.00014,2]
[361338377,1747488513307,-10000.0,0.00014,2]
[361338378,1747488514113,-10000.0,0.00014,2]
[361338379,1747488514563,-179.00500283,0.00013999,2]
[361338380,1747488514591,-415.10715537,0.00013999,2]
[361338381,1747488514615,-9405.8878418,0.00014,2]
[361338382,1747488514922,-10000.0,0.00014,2]
[361338383,1747488515775,-10000.0,0.00014,2]
[361338386,1747488525315,-10000.0,0.00014,2]
[361338387,1747488525518,-10000.0,0.00014,2]
[361338388,1747488525949,-10000.0,0.00014,2]
[361338389,1747488526548,-10000.0,0.00014,2]
[361338390,1747488527094,-10000.0,0.00014,2]
[361338391,1747488528053,-10000.0,0.00014,2]
[361338392,1747488528416,-10000.0,0.00014,2]
[361338393,1747488529182,-7533.37848166,0.00014,2]
[361338394,1747488529210,-2466.62151834,0.00014,2]
[361338395,1747488530132,-10000.0,0.00014,2]
[361338396,1747488531088,-10000.0,0.00014,2]
[361338398,1747488532412,-10000.0,0.00014,2]
[361338402,1747488547687,-156.33,0.00013699,2]
[361338403,1747488547709,-376.19891127,0.000139,2]
[361338404,1747488547731,-300.0,0.00013999,2]
[361338405,1747488547754,-9167.47108873,0.00014,2]
[361338406,1747488548475,-10000.0,0.00014,2]
[361338407,1747488548705,-10000.0,0.00014,2]
[361338408,1747488548963,-358.31012467,0.000139,2]
[361338409,1747488548986,-9641.68987533,0.00014,2]
[361338410,1747488549357,-10000.0,0.00014,2]
[361338411,1747488549889,-10000.0,0.00014,2]
[361338412,1747488550378,-10000.0,0.00014,2]
[361338413,1747488551277,-10000.0,0.00014,2]
[361338414,1747488551838,-10000.0,0.00014,2]
[361338415,1747488552903,-10000.0,0.00014,2]
[361338416,1747488554117,-10000.0,0.00014,2]
[361338421,1747488566601,-7389.0,0.00014,2]
[361338447,1747488632480,-4981.35496766,0.000139,2]
[361338449,1747488632490,-449.81469017,0.00013973,2]
[361338451,1747488632499,-500.0,0.00013973,2]
[361338453,1747488632509,-1200.0,0.00013989,2]
[361338455,1747488632520,-300.0,0.00013989,2]
[361338457,1747488632529,-15955.87890225,0.0001399,2]
[361338545,1747488637889,-1144.44820268,0.0001399,2]
[361338546,1747488637985,-18758.07231685,0.0001399,2]
[361338547,1747488638021,-1051.74850456,0.0001399,2]
[361338548,1747488638066,-9819.13550001,0.0001399,2]
[361338549,1747488638075,-167.14,0.0001399,2]
[361338550,1747488638083,-167.14,0.0001399,2]
[361338551,1747488638093,-167.14,0.0001399,2]
[361338552,1747488638102,-342.60990233,0.0001399,2]
[361338553,1747488638112,-342.60990233,0.0001399,2]
[361338554,1747488638122,-167.14,0.0001399,2]
[361338555,1747488638131,-167.14,0.0001399,2]
[361338556,1747488638140,-150.0,0.00013999,2]
[361338557,1747488638149,-38766.68924083,0.00014,2]
[361338558,1747488638158,-281301.25649615,0.00014,2]
[361338559,1747488638170,-8139.8719264,0.00014,2]
[361338560,1747488638180,-1875.9366208,0.00014,2]
[361338561,1747488638239,-1119.01234087,0.00014,2]
[361338562,1747488638249,-1468.87302269,0.00014,2]
[361338564,1747488640073,-2579.99999985,0.00014,2]
[361338565,1747488640135,-1545.18764239,0.00014,2]
[361338566,1747488640146,-1710.19466749,0.00014,2]
[361338567,1747488640310,-22835.17826651,0.00014,2]
[361338570,1747488644537,-1556472.60505634,0.00014,2]
[361338571,1747488644576,-566.43626,0.00014,2]
[361338572,1747488644587,-888.28561574,0.00014,2]
[361338573,1747488644612,-2143.91804575,0.00014,2]
[361338574,1747488646654,-430.79197122,0.000139,2]
[361338575,1747488646664,-58.9976688,0.00014,2]
[361338577,1747488647285,-5443.1420023,0.00014,2]
[361338578,1747488662317,526.36381839,0.00027397,120]
[361338583,1747489199969,-177.17093805,0.00013651,2]
[361338584,1747489202076,-177.17549284,0.00013651,2]
[361338587,1747489319309,167.24,0.00024958,120]
[361338588,1747489319485,167.24,0.00027227,120]
[361338591,1747489358949,150.0,0.00014,5]
[361338593,1747489378163,-304.3677993,0.00013569,2]
[361338594,1747489391609,-274.68238419,0.00013569,2]
[361338595,1747489393686,-96.39981651,0.00013569,2]
[361338596,1747489461638,150.0,0.00013539,7]
[361338597,1747489628112,-168.96,0.00010761,2]
[361338598,1747489628134,-626.84326411,0.00013562,2]
[361338602,1747489700335,-152.535009,0.00013383,2]
[361338603,1747489700359,-28.504991,0.00013451,2]
[361338604,1747489705589,-149.995009,0.00013451,2]
[361338606,1747489737044,-171.98,0.00013354,2]
[361338609,1747489760101,-78.02,0.00013354,2]
[361338610,1747489760123,-901.85,0.00013388,2]
[361338611,1747489760144,-30.95759298,0.000136,2]
[361338620,1747489832175,-575.6157526,0.000133,2]
[361338621,1747489832185,-500.0,0.00013373,2]
[361338622,1747489832195,-300.0,0.00013387,2]
[361338623,1747489832204,-129.50157097,0.00013387,2]
[361338624,1747489832291,-420.68212066,0.00013387,2]
[361338625,1747489832303,-649.81630837,0.00013387,2]
[361338626,1747489832313,-300.0,0.00013387,2]
[361338627,1747489832323,-906.52940475,0.00013388,2]
[361338628,1747489832334,-2325.47098,0.00013388,2]
[361338637,1747489838047,-741.54000082,0.00013388,2]
[361338638,1747489838058,-412.33,0.00013388,2]
[361338639,1747489838070,-607.5599998,0.00013388,2]
[361338640,1747489838103,-18906.56961463,0.00013388,2]
[361338641,1747489838112,-415.31466132,0.000136,2]
[361338642,1747489838122,-242.28800913,0.00013635,2]
[361338643,1747489838131,-156.33,0.00013699,2]
[361338644,1747489838140,-2509.214,0.0001372,2]
[361338645,1747489838150,-242.28800912,0.00013768,2]
[361338646,1747489838159,-354.35098568,0.00013805,2]
[361338647,1747489838169,-163.67,0.00013855,2]
[361338648,1747489838178,-989.73952756,0.000139,2]
[361338649,1747489838187,-168.15238174,0.000139,2]
[361338650,1747489838197,-286.9249569,0.000139,2]
[361338651,1747489838206,-2251.69683863,0.000139,2]
[361338652,1747489838216,-501.5380659,0.000139,2]
[361338653,1747489838226,-242.28800912,0.000139,2]
[361338654,1747489838235,-329.17404737,0.000139,2]
[361338655,1747489838245,-4483.21947093,0.000139,2]
[361338656,1747489838254,-562.70069489,0.000139,2]
[361338657,1747489838263,-159.1814108,0.00013973,2]
[361338658,1747489838272,-500.0,0.00013973,2]
[361338659,1747489838283,-150.0,0.00013989,2]
[361338660,1747489838293,-19180.61778513,0.0001399,2]
[361338661,1747489838302,-163.65,0.0001399,2]
[361338662,1747489838311,-163.65,0.0001399,2]
[361338663,1747489838321,-163.65,0.0001399,2]
[361338664,1747489838330,-163.65,0.0001399,2]
[361338665,1747489838339,-163.65,0.0001399,2]
[361338666,1747489838348,-163.65,0.0001399,2]
[361338667,1747489838358,-163.65,0.0001399,2]
[361338668,1747489838367,-342.60990233,0.0001399,2]
[361338669,1747489838377,-150.0,0.00013999,2]
[361338671,1747489838386,-267305.44717046,0.00014,2]
[361338673,1747489838403,-1519.0,0.00014,2]
[361338676,1747489838414,-7463.83697243,0.00014,2]
[361338755,1747489842179,-289.55795199,0.00014,2]
[361338777,1747489843155,-371.42475003,0.00014,2]
[361338780,1747489843171,-12321.68758154,0.00014,2]
[361338782,1747489843182,-3226.51497736,0.00014,2]
[361338785,1747489843198,-3583.12810072,0.00014,2]
[361338787,1747489843209,-2452.45,0.00014,2]
[361338789,1747489843220,-1995.83229695,0.00014,2]
[361338791,1747489843230,-470.493024,0.00014,2]
[361338794,1747489843245,-3699.979966,0.00014,2]
[361338819,1747489843562,-4571.15250804,0.00014,2]
[361338820,1747489843619,-2127.5000002,0.00014,2]
[361338821,1747489843678,-36546.25643638,0.00014,2]
[361338822,1747489843687,-1588503.90272911,0.00014,2]
[361338823,1747489843697,-222964.10435634,0.00014,2]
[361338824,1747489843735,-43585.10902643,0.00014,2]
[361339059,1747489846062,-612.66204999,0.00014,2]
[361339066,1747489846120,-356.79000028,0.00014,2]
[361339068,1747489846132,-866.23005724,0.00014,2]
[361339080,1747489846235,-371.322,0.00014,2]
[361339082,1747489846246,-20102.9648736,0.00014,2]
[361339084,1747489846258,-12576.56614922,0.00014,2]
[361339086,1747489846269,-10948.5134584,0.00014,2]
[361339090,1747489846294,-475.74,0.00014,2]
[361339097,1747489846354,-2228.1553355,0.00014,2]
[361339104,1747489846413,-2011.27542437,0.00014,2]
[361339106,1747489846422,-189.6,0.00014087,2]
[361339108,1747489846431,-955.08,0.000141,2]
[361339110,1747489846441,-9979.56304395,0.0001439,2]
[361339112,1747489846450,-166.43,0.00014599,2]
[361339114,1747489846460,-166.43,0.00014603,2]
[361339116,1747489846469,-166.43,0.00014606,2]
[361339118,1747489846478,-166.43,0.0001461,2]
[361339120,1747489846487,-166.43,0.00014614,2]
[361339122,1747489846496,-166.43,0.00014618,2]
[361339124,1747489846506,-166.43,0.00014622,2]
[361339126,1747489846516,-166.43,0.00014626,2]
[361339128,1747489846525,-166.43,0.00014629,2]
[361339130,1747489846534,-166.43,0.00014633,2]
[361339132,1747489846543,-166.43,0.00014637,2]
[361339134,1747489846552,-166.43,0.00014641,2]
[361339136,1747489846561,-166.43,0.00014645,2]
[361339138,1747489846570,-166.43,0.00014649,2]
[361339140,1747489846579,-166.43,0.00014652,2]
[361339142,1747489846588,-166.43,0.00014656,2]
[361339144,1747489846598,-166.43,0.0001466,2]
[361339146,1747489846607,-166.43,0.00014664,2]
[361339148,1747489846617,-166.43,0.00014668,2]
[361339150,1747489846626,-166.43,0.00014672,2]
[361339152,1747489846636,-420.0,0.00014675,2]
[361339154,1747489846645,-1680.0,0.00014725,2]
[361339156,1747489846654,-15598.29204346,0.000149,2]
[361339158,1747489846663,-786.79161502,0.000149,2]
[361339160,1747489846672,-1049.77873284,0.00014901,2]
[361339162,1747489846682,-163.67,0.00014998,2]
[361339164,1747489846691,-1981.75095214,0.00015,2]
[361339166,1747489846701,-250.0,0.00015,2]
[361339168,1747489846710,-700.0,0.00015,2]
[361339170,1747489846719,-255.0,0.00015108,2]